[Event "Early-Titled-Tuesday-Blitz-February-06-2024"]
[Site "Chess.com"]
[Date "2024.02.06"]
[Round "3"]
[White "flomarechot"]
[Black "Flawless_Fighter"]
[Result "0-1"]
[WhiteElo "2305"]
[BlackElo "2743"]
[TimeControl "180+1"]
[EndTime "8:27:05 PST"]
[Termination "Flawless_Fighter won by checkmate"]

1. Nf3 {[%clk 0:03:00.9]} 1... d5 {[%clk 0:02:59.7]} 2. b3 {[%clk 0:03:01.2]}
2... Nf6 {[%clk 0:02:59.2]} 3. Bb2 {[%clk 0:03:01.7]} 3... e6 {[%clk 0:03:00]}
4. e3 {[%clk 0:03:01.9]} 4... Be7 {[%clk 0:03:00.5]} 5. d4 {[%clk 0:03:02.4]}
5... O-O {[%clk 0:03:01]} 6. Be2 {[%clk 0:03:03]} 6... b6 {[%clk 0:03:01.7]} 7.
O-O {[%clk 0:03:03.6]} 7... Bb7 {[%clk 0:03:02.5]} 8. c4 {[%clk 0:03:04.3]} 8...
c5 {[%clk 0:03:03.1]} 9. cxd5 {[%clk 0:03:04.8]} 9... Nxd5 {[%clk 0:03:03.2]}
10. Nc3 {[%clk 0:03:04.6]} 10... Nxc3 {[%clk 0:03:02.8]} 11. Bxc3 {[%clk
0:03:05.5]} 11... Nd7 {[%clk 0:03:03.4]} 12. Rc1 {[%clk 0:03:03.5]} 12... Rc8
{[%clk 0:03:03.8]} 13. Bd3 {[%clk 0:02:35.2]} 13... cxd4 {[%clk 0:02:56]} 14.
Bxd4 {[%clk 0:02:25.6]} 14... Rxc1 {[%clk 0:02:56.9]} 15. Qxc1 {[%clk
0:02:26.2]} 15... e5 {[%clk 0:02:56.9]} 16. Bxe5 {[%clk 0:01:46.7]} 16... Bxf3
{[%clk 0:02:54.5]} 17. Bc7 {[%clk 0:01:46.3]} 17... Qa8 {[%clk 0:02:46.5]} 18.
gxf3 {[%clk 0:01:43.1]} 18... Qxf3 {[%clk 0:02:47.4]} 19. Qd1 {[%clk 0:01:14.3]}
19... Qc6 {[%clk 0:02:41.9]} 20. Bg3 {[%clk 0:01:09.5]} 20... Nc5 {[%clk
0:02:41.9]} 21. Bc4 {[%clk 0:00:50.7]} 21... Rd8 {[%clk 0:02:40]} 22. Qh5 {[%clk
0:00:50.2]} 22... g6 {[%clk 0:02:38.6]} 23. Qh3 {[%clk 0:00:34.8]} 23... b5
{[%clk 0:02:37.7]} 24. Be2 {[%clk 0:00:21.6]} 24... a6 {[%clk 0:02:36.9]} 25.
Rd1 {[%clk 0:00:20.6]} 25... Rxd1+ {[%clk 0:02:33]} 26. Bxd1 {[%clk 0:00:21.5]}
26... Qd5 {[%clk 0:02:33.1]} 27. Be2 {[%clk 0:00:19.3]} 27... Kg7 {[%clk
0:02:33.1]} 28. Qg4 {[%clk 0:00:18.2]} 28... Bf6 {[%clk 0:02:32.8]} 29. Qf3
{[%clk 0:00:18.3]} 29... Qd2 {[%clk 0:02:31.8]} 30. Bf1 {[%clk 0:00:17.3]} 30...
h5 {[%clk 0:02:28.4]} 31. h4 {[%clk 0:00:14.2]} 31... Qxa2 {[%clk 0:02:27.6]}
32. Qd5 {[%clk 0:00:11.9]} 32... Qc2 {[%clk 0:02:16.6]} 33. Be5 {[%clk
0:00:11.4]} 33... Ne6 {[%clk 0:02:07.1]} 34. Bxf6+ {[%clk 0:00:10.7]} 34... Kxf6
{[%clk 0:02:08]} 35. b4 {[%clk 0:00:10.7]} 35... Qc3 {[%clk 0:02:04.4]} 36. Qd6
{[%clk 0:00:09.7]} 36... Qe5 {[%clk 0:02:02.1]} 37. Qxa6 {[%clk 0:00:09.6]}
37... Qe4 {[%clk 0:01:56.4]} 38. Qxb5 {[%clk 0:00:09.3]} 38... Qxh4 {[%clk
0:01:56.4]} 39. Qc4 {[%clk 0:00:09.7]} 39... Qg5+ {[%clk 0:01:54.7]} 40. Bg2
{[%clk 0:00:09.5]} 40... h4 {[%clk 0:01:49.9]} 41. Kf1 {[%clk 0:00:10.1]} 41...
Qh5 {[%clk 0:01:42.7]} 42. Bh3 {[%clk 0:00:08.6]} 42... Ng5 {[%clk 0:01:42]} 43.
Qc6+ {[%clk 0:00:07.8]} 43... Kg7 {[%clk 0:01:42]} 44. Qc3+ {[%clk 0:00:08.4]}
44... Kh7 {[%clk 0:01:42.1]} 45. Qc8 {[%clk 0:00:05.7]} 45... Qd1+ {[%clk
0:01:41.4]} 46. Kg2 {[%clk 0:00:06]} 46... Qf3+ {[%clk 0:01:42.1]} 47. Kh2
{[%clk 0:00:05.1]} 47... Qxf2+ {[%clk 0:01:42]} 48. Kh1 {[%clk 0:00:05.2]} 48...
Nf3 {[%clk 0:01:38.5]} 49. Bg2 {[%clk 0:00:04.6]} 49... Qg1# {[%clk 0:01:38.4]}
0-1

[Event "Early-Titled-Tuesday-Blitz-February-06-2024"]
[Site "Chess.com"]
[Date "2024.02.06"]
[Round "3"]
[White "BogdanDeac"]
[Black "ArturoCaceres"]
[Result "1-0"]
[WhiteElo "3020"]
[BlackElo "2514"]
[TimeControl "180+1"]
[EndTime "8:27:06 PST"]
[Termination "BogdanDeac won by resignation"]

1. b3 {[%clk 0:03:00.9]} 1... d5 {[%clk 0:02:55.5]} 2. Bb2 {[%clk 0:03:01.8]}
2... c5 {[%clk 0:02:55.3]} 3. e3 {[%clk 0:03:01.2]} 3... Nc6 {[%clk 0:02:55.7]}
4. Bb5 {[%clk 0:03:00.9]} 4... Bd7 {[%clk 0:02:55.8]} 5. Nf3 {[%clk 0:03:00.3]}
5... a6 {[%clk 0:02:56.3]} 6. Bxc6 {[%clk 0:03:00]} 6... Bxc6 {[%clk 0:02:56.5]}
7. Ne5 {[%clk 0:03:00.5]} 7... Qc7 {[%clk 0:02:56.9]} 8. Qh5 {[%clk 0:02:52.8]}
8... g6 {[%clk 0:02:51.5]} 9. Qf3 {[%clk 0:02:49]} 9... Nf6 {[%clk 0:02:51.7]}
10. Nxc6 {[%clk 0:02:48.5]} 10... Qxc6 {[%clk 0:02:52.6]} 11. Bxf6 {[%clk
0:02:43.7]} 11... Qxf6 {[%clk 0:02:53.5]} 12. Qxf6 {[%clk 0:02:42.7]} 12... exf6
{[%clk 0:02:53.2]} 13. Nc3 {[%clk 0:02:43.2]} 13... Rd8 {[%clk 0:02:52.5]} 14.
Ne2 {[%clk 0:02:42.5]} 14... f5 {[%clk 0:02:51.7]} 15. c3 {[%clk 0:02:41.8]}
15... Bg7 {[%clk 0:02:45.3]} 16. d4 {[%clk 0:02:41.2]} 16... b6 {[%clk
0:02:39.5]} 17. h4 {[%clk 0:02:38.1]} 17... h6 {[%clk 0:02:36.8]} 18. Kd2 {[%clk
0:02:34.8]} 18... Ke7 {[%clk 0:02:36.6]} 19. Kd3 {[%clk 0:02:33.1]} 19... Rd7
{[%clk 0:02:36.7]} 20. a4 {[%clk 0:02:31.6]} 20... Rc8 {[%clk 0:02:35.9]} 21.
Ra2 {[%clk 0:02:28.7]} 21... Rdc7 {[%clk 0:02:31.3]} 22. g3 {[%clk 0:02:28.7]}
22... Kd6 {[%clk 0:02:25.7]} 23. Rd1 {[%clk 0:02:26.2]} 23... Bf6 {[%clk
0:02:19.5]} 24. Kd2 {[%clk 0:02:24.6]} 24... a5 {[%clk 0:02:13.6]} 25. Rh1
{[%clk 0:02:18.8]} 25... h5 {[%clk 0:02:13.2]} 26. Rd1 {[%clk 0:02:16]} 26...
Rc6 {[%clk 0:02:12.4]} 27. Ke1 {[%clk 0:02:15.9]} 27... Bg7 {[%clk 0:02:10.1]}
28. Rad2 {[%clk 0:02:12.9]} 28... c4 {[%clk 0:02:04.7]} 29. Rb2 {[%clk
0:02:09.8]} 29... cxb3 {[%clk 0:01:48.1]} 30. Rxb3 {[%clk 0:02:09.5]} 30... Bh6
{[%clk 0:01:40.4]} 31. Rdb1 {[%clk 0:02:07.3]} 31... Kc7 {[%clk 0:01:37.2]} 32.
Rb5 {[%clk 0:02:07]} 32... Rd8 {[%clk 0:01:37.1]} 33. Kd2 {[%clk 0:02:05.5]}
33... Rdd6 {[%clk 0:01:35.8]} 34. Kd3 {[%clk 0:02:04.4]} 34... Kd7 {[%clk
0:01:26.1]} 35. Ng1 {[%clk 0:02:02.7]} 35... f6 {[%clk 0:01:22.3]} 36. Nf3
{[%clk 0:02:02.1]} 36... g5 {[%clk 0:00:29]} 37. hxg5 {[%clk 0:01:59.8]} 37...
Bxg5 {[%clk 0:00:26.8]} 38. Rh1 {[%clk 0:01:57.7]} 38... Rc4 {[%clk 0:00:23.9]}
39. Ra1 {[%clk 0:01:56.5]} 39... Kc7 {[%clk 0:00:19]} 40. Nd2 {[%clk 0:01:54.8]}
40... Rcc6 {[%clk 0:00:18.1]} 41. Rh1 {[%clk 0:01:54.6]} 41... Kb7 {[%clk
0:00:10.4]} 42. Rxh5 {[%clk 0:01:52.7]} 42... Rc7 {[%clk 0:00:07.9]} 43. f4
{[%clk 0:01:52.4]} 43... Rdc6 {[%clk 0:00:06.4]} 44. Rb3 {[%clk 0:01:52]} 44...
Rc4 {[%clk 0:00:04.8]} 45. Ra3 {[%clk 0:01:47.7]} 45... R4c6 {[%clk 0:00:02.7]}
46. fxg5 {[%clk 0:01:47.3]} 46... fxg5 {[%clk 0:00:03.6]} 47. Rxg5 {[%clk
0:01:47.4]} 47... Rf6 {[%clk 0:00:04.5]} 48. Rb3 {[%clk 0:01:46.3]} 48... Re7
{[%clk 0:00:05.4]} 49. Rb5 {[%clk 0:01:45.6]} 49... Kc6 {[%clk 0:00:04.2]} 50.
Nf3 {[%clk 0:01:44.7]} 50... Re4 {[%clk 0:00:04.8]} 51. Ne5+ {[%clk 0:01:44]}
51... Kc7 {[%clk 0:00:05.1]} 52. Rxd5 {[%clk 0:01:42.1]} 1-0

[Event "Early-Titled-Tuesday-Blitz-February-06-2024"]
[Site "Chess.com"]
[Date "2024.02.06"]
[Round "3"]
[White "OK97"]
[Black "Semetey"]
[Result "0-1"]
[WhiteElo "2826"]
[BlackElo "2644"]
[TimeControl "180+1"]
[EndTime "8:27:09 PST"]
[Termination "Semetey won on time"]

1. e4 {[%clk 0:03:00.9]} 1... c5 {[%clk 0:02:45]} 2. Nc3 {[%clk 0:03:00.7]} 2...
d6 {[%clk 0:02:44.2]} 3. f4 {[%clk 0:03:00.2]} 3... g6 {[%clk 0:02:43.9]} 4. Nf3
{[%clk 0:03:00]} 4... Bg7 {[%clk 0:02:44.6]} 5. Bb5+ {[%clk 0:03:00.2]} 5... Nc6
{[%clk 0:02:44.4]} 6. Bxc6+ {[%clk 0:03:00.4]} 6... bxc6 {[%clk 0:02:44.5]} 7.
d3 {[%clk 0:03:01]} 7... Nf6 {[%clk 0:02:44]} 8. O-O {[%clk 0:03:01.2]} 8... O-O
{[%clk 0:02:44.3]} 9. Qe1 {[%clk 0:03:01.5]} 9... Bg4 {[%clk 0:02:43.4]} 10. Kh1
{[%clk 0:03:01.2]} 10... Bxf3 {[%clk 0:02:43.7]} 11. Rxf3 {[%clk 0:03:01.1]}
11... Rb8 {[%clk 0:02:41.7]} 12. b3 {[%clk 0:02:59.6]} 12... e6 {[%clk
0:02:25.1]} 13. Bd2 {[%clk 0:02:56.4]} 13... d5 {[%clk 0:02:24.7]} 14. e5 {[%clk
0:02:42.1]} 14... Nd7 {[%clk 0:02:24.6]} 15. Na4 {[%clk 0:02:27.9]} 15... f6
{[%clk 0:02:24.2]} 16. exf6 {[%clk 0:02:22.9]} 16... Qxf6 {[%clk 0:02:24.5]} 17.
Rd1 {[%clk 0:02:22.9]} 17... Rbe8 {[%clk 0:02:20.8]} 18. Qg1 {[%clk 0:02:12.5]}
18... Qe7 {[%clk 0:02:19.1]} 19. Rff1 {[%clk 0:01:49.1]} 19... Qd6 {[%clk
0:02:12.4]} 20. Be3 {[%clk 0:01:44.9]} 20... d4 {[%clk 0:02:00.4]} 21. Bc1
{[%clk 0:01:43]} 21... e5 {[%clk 0:01:54.1]} 22. fxe5 {[%clk 0:01:42.9]} 22...
Bxe5 {[%clk 0:01:54.8]} 23. Nb2 {[%clk 0:01:29.6]} 23... Qd5 {[%clk 0:01:48.2]}
24. Nc4 {[%clk 0:01:29.4]} 24... Bc7 {[%clk 0:01:48.2]} 25. Bh6 {[%clk
0:01:26.9]} 25... Rxf1 {[%clk 0:01:43.7]} 26. Rxf1 {[%clk 0:01:25.8]} 26... Qh5
{[%clk 0:01:43.5]} 27. Bf4 {[%clk 0:01:22]} 27... Bxf4 {[%clk 0:01:41.2]} 28.
Rxf4 {[%clk 0:01:22.9]} 28... Re2 {[%clk 0:01:17.8]} 29. h3 {[%clk 0:01:01.1]}
29... Rxc2 {[%clk 0:01:15.4]} 30. Nd6 {[%clk 0:00:31.3]} 30... Qe2 {[%clk
0:01:10.8]} 31. Re4 {[%clk 0:00:27]} 31... Qd2 {[%clk 0:01:00.5]} 32. Re8+
{[%clk 0:00:19.9]} 32... Nf8 {[%clk 0:01:00.5]} 33. Ne4 {[%clk 0:00:16.3]} 33...
Qf4 {[%clk 0:00:56.5]} 0-1

[Event "Early-Titled-Tuesday-Blitz-February-06-2024"]
[Site "Chess.com"]
[Date "2024.02.06"]
[Round "3"]
[White "Sanan_Sjugirov"]
[Black "tandaleo"]
[Result "0-1"]
[WhiteElo "2977"]
[BlackElo "2528"]
[TimeControl "180+1"]
[EndTime "8:27:11 PST"]
[Termination "tandaleo won by resignation"]

1. e4 {[%clk 0:02:56.7]} 1... e5 {[%clk 0:03:00.3]} 2. Nf3 {[%clk 0:02:53.4]}
2... Nc6 {[%clk 0:03:00.7]} 3. Bb5 {[%clk 0:02:51.2]} 3... a6 {[%clk 0:03:00.5]}
4. Ba4 {[%clk 0:02:51.8]} 4... d6 {[%clk 0:02:59.4]} 5. O-O {[%clk 0:02:49.8]}
5... Bd7 {[%clk 0:02:59.3]} 6. c4 {[%clk 0:02:49.6]} 6... Nf6 {[%clk 0:02:56.6]}
7. Nc3 {[%clk 0:02:49.1]} 7... Bg4 {[%clk 0:02:56.9]} 8. h3 {[%clk 0:02:43.4]}
8... Bxf3 {[%clk 0:02:56.1]} 9. Qxf3 {[%clk 0:02:42.7]} 9... Be7 {[%clk
0:02:52.5]} 10. Bxc6+ {[%clk 0:02:34.7]} 10... bxc6 {[%clk 0:02:52.3]} 11. d3
{[%clk 0:02:33.8]} 11... O-O {[%clk 0:02:52.3]} 12. Be3 {[%clk 0:02:33.6]} 12...
c5 {[%clk 0:02:45.9]} 13. Qe2 {[%clk 0:02:32.4]} 13... Nd7 {[%clk 0:02:44.6]}
14. f4 {[%clk 0:02:31.6]} 14... exf4 {[%clk 0:02:44.9]} 15. Bxf4 {[%clk
0:02:32.5]} 15... Bf6 {[%clk 0:02:37.3]} 16. Kh1 {[%clk 0:02:30.8]} 16... Bxc3
{[%clk 0:02:26.4]} 17. bxc3 {[%clk 0:02:31.7]} 17... Qe7 {[%clk 0:02:26.8]} 18.
Qg4 {[%clk 0:02:26.9]} 18... Ne5 {[%clk 0:02:22.2]} 19. Qg3 {[%clk 0:02:27.3]}
19... Ng6 {[%clk 0:02:20.5]} 20. Bg5 {[%clk 0:02:25.5]} 20... Qe6 {[%clk
0:02:19.3]} 21. Rf5 {[%clk 0:02:21]} 21... Rab8 {[%clk 0:02:18.4]} 22. h4 {[%clk
0:02:12]} 22... f6 {[%clk 0:02:17.5]} 23. Be3 {[%clk 0:02:00.2]} 23... Ne7
{[%clk 0:02:12.4]} 24. Rf3 {[%clk 0:01:51.7]} 24... f5 {[%clk 0:02:10.1]} 25.
Rf4 {[%clk 0:00:55.6]} 25... Ng6 {[%clk 0:01:29.2]} 26. Rxf5 {[%clk 0:00:53.8]}
26... Rxf5 {[%clk 0:01:30.1]} 27. exf5 {[%clk 0:00:54.2]} 27... Qxf5 {[%clk
0:01:30.7]} 28. Bg5 {[%clk 0:00:39.3]} 28... h6 {[%clk 0:01:10.5]} 29. Bd2
{[%clk 0:00:38.9]} 29... Rb2 {[%clk 0:01:00.9]} 30. Rd1 {[%clk 0:00:31.5]} 30...
Qh5 {[%clk 0:01:01.1]} 31. Qf3 {[%clk 0:00:16.1]} 31... Qxf3 {[%clk 0:00:54.9]}
32. gxf3 {[%clk 0:00:17]} 32... Nxh4 {[%clk 0:00:55.7]} 33. Bc1 {[%clk
0:00:14.4]} 33... Rxa2 {[%clk 0:00:54.1]} 34. Rf1 {[%clk 0:00:14.9]} 34... Rc2
{[%clk 0:00:50.4]} 35. d4 {[%clk 0:00:13.5]} 35... Nxf3 {[%clk 0:00:49.5]} 36.
Rxf3 {[%clk 0:00:13.4]} 36... Rxc1+ {[%clk 0:00:49.9]} 37. Kg2 {[%clk
0:00:14.3]} 37... cxd4 {[%clk 0:00:50.5]} 38. cxd4 {[%clk 0:00:14.8]} 38... Rxc4
{[%clk 0:00:50.9]} 0-1

[Event "Early-Titled-Tuesday-Blitz-February-06-2024"]
[Site "Chess.com"]
[Date "2024.02.06"]
[Round "3"]
[White "Saraisitave"]
[Black "Mesa_1"]
[Result "0-1"]
[WhiteElo "2283"]
[BlackElo "2540"]
[TimeControl "180+1"]
[EndTime "8:27:11 PST"]
[Termination "Mesa_1 won on time"]

1. e4 {[%clk 0:03:00]} 1... d6 {[%clk 0:02:59.5]} 2. d4 {[%clk 0:02:59.6]} 2...
Nf6 {[%clk 0:03:00.2]} 3. Nc3 {[%clk 0:02:59.4]} 3... e5 {[%clk 0:03:01]} 4.
dxe5 {[%clk 0:02:58.6]} 4... dxe5 {[%clk 0:03:01.9]} 5. Qxd8+ {[%clk 0:02:58.6]}
5... Kxd8 {[%clk 0:03:02.8]} 6. Bg5 {[%clk 0:02:58.6]} 6... Be6 {[%clk
0:03:02.7]} 7. O-O-O+ {[%clk 0:02:57.1]} 7... Nd7 {[%clk 0:03:02.7]} 8. Nf3
{[%clk 0:02:56.3]} 8... h6 {[%clk 0:02:58.7]} 9. Bh4 {[%clk 0:02:54.8]} 9... Bd6
{[%clk 0:02:58.2]} 10. Bg3 {[%clk 0:02:45.1]} 10... Ke7 {[%clk 0:02:54.2]} 11.
Nd5+ {[%clk 0:01:42]} 11... Bxd5 {[%clk 0:02:29.1]} 12. exd5 {[%clk 0:01:41.5]}
12... Ne4 {[%clk 0:02:29.6]} 13. Bd3 {[%clk 0:01:30.1]} 13... Nxg3 {[%clk
0:02:29.8]} 14. hxg3 {[%clk 0:01:29.5]} 14... g6 {[%clk 0:02:30.7]} 15. Rde1
{[%clk 0:01:25.8]} 15... f5 {[%clk 0:02:28.7]} 16. c4 {[%clk 0:01:23.3]} 16...
Kf6 {[%clk 0:02:27.3]} 17. Bc2 {[%clk 0:01:21.4]} 17... a5 {[%clk 0:02:24.2]}
18. Nh4 {[%clk 0:01:18.5]} 18... a4 {[%clk 0:02:22.3]} 19. g4 {[%clk 0:01:16.3]}
19... e4 {[%clk 0:02:20.9]} 20. f3 {[%clk 0:01:01]} 20... Bg3 {[%clk 0:02:20.3]}
21. Ref1 {[%clk 0:00:38.5]} 21... e3 {[%clk 0:02:15.7]} 22. gxf5 {[%clk
0:00:35.9]} 22... e2 {[%clk 0:02:12.6]} 23. Re1 {[%clk 0:00:25]} 23... g5 {[%clk
0:02:04]} 24. Ng6 {[%clk 0:00:18]} 24... Rhe8 {[%clk 0:02:04.6]} 25. Kd2 {[%clk
0:00:15.1]} 25... Nb6 {[%clk 0:01:52]} 26. Rxe2 {[%clk 0:00:14.1]} 26... Nxc4+
{[%clk 0:01:52.7]} 27. Kd1 {[%clk 0:00:11.3]} 27... Nxb2+ {[%clk 0:01:53.3]} 28.
Kd2 {[%clk 0:00:10.1]} 28... Nc4+ {[%clk 0:01:54]} 29. Kd3 {[%clk 0:00:09.4]}
29... Nb2+ {[%clk 0:01:41.5]} 30. Kd2 {[%clk 0:00:09.2]} 30... Rxe2+ {[%clk
0:01:42.4]} 31. Kxe2 {[%clk 0:00:09.1]} 31... Re8+ {[%clk 0:01:43.3]} 32. Kd2
{[%clk 0:00:09.3]} 32... Nc4+ {[%clk 0:01:43.9]} 33. Kc3 {[%clk 0:00:08.4]}
33... b5 {[%clk 0:01:41.8]} 34. Rxh6 {[%clk 0:00:07.7]} 34... Kg7 {[%clk
0:01:42.4]} 35. Rh3 {[%clk 0:00:06.7]} 35... Be1+ {[%clk 0:01:37.1]} 36. Kd4
{[%clk 0:00:04.6]} 36... Bf2+ {[%clk 0:01:37]} 37. Kc3 {[%clk 0:00:03.8]} 37...
Re3+ {[%clk 0:01:29.1]} 38. Kb4 {[%clk 0:00:03.3]} 38... Na3 {[%clk 0:01:19.3]}
39. Be4 {[%clk 0:00:01.1]} 39... Be1+ {[%clk 0:01:12.1]} 0-1

[Event "Early-Titled-Tuesday-Blitz-February-06-2024"]
[Site "Chess.com"]
[Date "2024.02.06"]
[Round "3"]
[White "simonachess"]
[Black "SujanaLohani"]
[Result "1-0"]
[WhiteElo "2341"]
[BlackElo "1992"]
[TimeControl "180+1"]
[EndTime "8:27:14 PST"]
[Termination "simonachess won on time"]

1. d4 {[%clk 0:02:07.5]} 1... Nf6 {[%clk 0:02:58.9]} 2. c4 {[%clk 0:02:06.7]}
2... g6 {[%clk 0:02:58.8]} 3. Nc3 {[%clk 0:02:07.3]} 3... Bg7 {[%clk 0:02:59.1]}
4. e4 {[%clk 0:02:07.8]} 4... d6 {[%clk 0:02:59.2]} 5. Be2 {[%clk 0:02:08.4]}
5... O-O {[%clk 0:02:59]} 6. Bg5 {[%clk 0:02:08.6]} 6... Na6 {[%clk 0:02:46.8]}
7. Qd2 {[%clk 0:02:03.5]} 7... c5 {[%clk 0:02:44.1]} 8. d5 {[%clk 0:02:03.5]}
8... Re8 {[%clk 0:02:15]} 9. Nf3 {[%clk 0:01:53.6]} 9... e6 {[%clk 0:01:57.7]}
10. O-O {[%clk 0:01:51.4]} 10... Qc7 {[%clk 0:01:36.1]} 11. h3 {[%clk
0:01:43.7]} 11... exd5 {[%clk 0:01:31.7]} 12. exd5 {[%clk 0:01:43.3]} 12... Bf5
{[%clk 0:01:27.8]} 13. Nh4 {[%clk 0:01:37.2]} 13... Bd7 {[%clk 0:01:24.4]} 14.
Bd3 {[%clk 0:01:31.4]} 14... Nb4 {[%clk 0:01:15.7]} 15. Bb1 {[%clk 0:01:29.8]}
15... a6 {[%clk 0:01:11]} 16. a3 {[%clk 0:01:30.2]} 16... Nc6 {[%clk 0:00:42.6]}
17. dxc6 {[%clk 0:01:27.3]} 17... Bxc6 {[%clk 0:00:43.5]} 18. Bc2 {[%clk
0:01:09.1]} 18... Nd7 {[%clk 0:00:31.4]} 19. Rae1 {[%clk 0:01:03.1]} 19... Ne5
{[%clk 0:00:30.4]} 20. b3 {[%clk 0:00:58.6]} 20... Bf8 {[%clk 0:00:12.3]} 21.
Nd5 {[%clk 0:00:58.1]} 21... Bxd5 {[%clk 0:00:10.1]} 22. cxd5 {[%clk 0:00:59]}
22... b5 {[%clk 0:00:07.3]} 23. Qf4 {[%clk 0:00:49.6]} 23... c4 {[%clk 0:00:05]}
24. Rc1 {[%clk 0:00:32.9]} 1-0

[Event "Early-Titled-Tuesday-Blitz-February-06-2024"]
[Site "Chess.com"]
[Date "2024.02.06"]
[Round "3"]
[White "santosalberto1987"]
[Black "Massakru"]
[Result "1-0"]
[WhiteElo "2558"]
[BlackElo "2332"]
[TimeControl "180+1"]
[EndTime "8:27:15 PST"]
[Termination "santosalberto1987 won by resignation"]

1. e4 {[%clk 0:03:00.9]} 1... e5 {[%clk 0:02:59.5]} 2. Nf3 {[%clk 0:03:00.4]}
2... Nc6 {[%clk 0:02:59.8]} 3. Bc4 {[%clk 0:03:00.7]} 3... Nf6 {[%clk
0:02:59.5]} 4. d3 {[%clk 0:03:00.8]} 4... h6 {[%clk 0:02:59]} 5. c3 {[%clk
0:02:57.6]} 5... d6 {[%clk 0:02:57.4]} 6. Bb3 {[%clk 0:02:57.3]} 6... g5 {[%clk
0:02:56.2]} 7. Nbd2 {[%clk 0:02:57]} 7... g4 {[%clk 0:02:54]} 8. Nh4 {[%clk
0:02:54.1]} 8... Nxe4 {[%clk 0:02:52.3]} 9. dxe4 {[%clk 0:02:51.4]} 9... Qxh4
{[%clk 0:02:50.9]} 10. Nf1 {[%clk 0:02:52]} 10... Bg7 {[%clk 0:02:38.2]} 11. Ng3
{[%clk 0:02:49.4]} 11... h5 {[%clk 0:02:28.1]} 12. Be3 {[%clk 0:02:44]} 12...
Qf6 {[%clk 0:02:15.8]} 13. Qd2 {[%clk 0:02:39.2]} 13... h4 {[%clk 0:02:14.7]}
14. Ne2 {[%clk 0:02:37.9]} 14... Bh6 {[%clk 0:02:11]} 15. O-O-O {[%clk
0:02:33.5]} 15... Bxe3 {[%clk 0:02:06.2]} 16. fxe3 {[%clk 0:02:25.3]} 16... Nd8
{[%clk 0:01:57.9]} 17. Rhf1 {[%clk 0:02:24.4]} 17... Qg5 {[%clk 0:01:49.9]} 18.
Rf2 {[%clk 0:02:17.4]} 18... Be6 {[%clk 0:01:42.1]} 19. Rdf1 {[%clk 0:02:17.4]}
19... Bxb3 {[%clk 0:01:22.2]} 20. axb3 {[%clk 0:02:18.3]} 20... Rh6 {[%clk
0:01:10.8]} 21. Rf5 {[%clk 0:02:16.3]} 21... Qe7 {[%clk 0:01:07.5]} 22. Kc2
{[%clk 0:02:09.2]} 22... Ne6 {[%clk 0:01:03.7]} 23. Nc1 {[%clk 0:02:02.3]} 23...
O-O-O {[%clk 0:01:00.4]} 24. Rxf7 {[%clk 0:02:01.7]} 24... Qg5 {[%clk
0:00:53.9]} 25. Nd3 {[%clk 0:01:56.4]} 25... Rhh8 {[%clk 0:00:31.5]} 26. R1f5
{[%clk 0:01:54.6]} 26... Qg8 {[%clk 0:00:28.4]} 27. Qf2 {[%clk 0:01:49.4]} 27...
Ng5 {[%clk 0:00:22.3]} 28. Re7 {[%clk 0:01:28.5]} 28... Nxe4 {[%clk 0:00:21.6]}
29. Qf1 {[%clk 0:01:23.4]} 29... Rd7 {[%clk 0:00:16.1]} 30. Rxd7 {[%clk
0:01:18.5]} 30... Kxd7 {[%clk 0:00:16.3]} 31. Rf7+ {[%clk 0:01:18.9]} 31... Kc8
{[%clk 0:00:12.8]} 32. Qf5+ {[%clk 0:01:18.3]} 32... Kb8 {[%clk 0:00:13.1]} 33.
Qd7 {[%clk 0:01:12.9]} 33... Nc5 {[%clk 0:00:12.1]} 34. Qxc7+ {[%clk 0:01:12.3]}
34... Ka8 {[%clk 0:00:12]} 35. Nxc5 {[%clk 0:01:12.3]} 35... Qb8 {[%clk
0:00:11.3]} 36. Nxb7 {[%clk 0:01:05]} 36... Qxc7 {[%clk 0:00:10.9]} 37. Rxc7
{[%clk 0:01:05.9]} 37... g3 {[%clk 0:00:11.5]} 38. hxg3 {[%clk 0:01:04]} 38...
hxg3 {[%clk 0:00:11.9]} 39. Nxd6 {[%clk 0:01:03.7]} 39... Rf8 {[%clk 0:00:12.1]}
40. Rg7 {[%clk 0:01:03]} 40... Rf2+ {[%clk 0:00:11.7]} 41. Kb1 {[%clk
0:01:02.9]} 41... a5 {[%clk 0:00:11.5]} 42. Rxg3 {[%clk 0:01:02.2]} 1-0

[Event "Early-Titled-Tuesday-Blitz-February-06-2024"]
[Site "Chess.com"]
[Date "2024.02.06"]
[Round "3"]
[White "arturdailima"]
[Black "C_K_G"]
[Result "1-0"]
[WhiteElo "2384"]
[BlackElo "2116"]
[TimeControl "180+1"]
[EndTime "8:27:15 PST"]
[Termination "arturdailima won by resignation"]

1. d4 {[%clk 0:03:00.9]} 1... d5 {[%clk 0:02:59]} 2. c4 {[%clk 0:03:00.6]} 2...
e6 {[%clk 0:02:58.8]} 3. Nc3 {[%clk 0:02:59.4]} 3... Nf6 {[%clk 0:02:59.3]} 4.
cxd5 {[%clk 0:02:56.5]} 4... exd5 {[%clk 0:02:58.6]} 5. Bf4 {[%clk 0:02:56.6]}
5... a6 {[%clk 0:02:56.1]} 6. e3 {[%clk 0:02:55.6]} 6... Bd6 {[%clk 0:02:54]} 7.
Bxd6 {[%clk 0:02:53.5]} 7... Qxd6 {[%clk 0:02:53.2]} 8. Bd3 {[%clk 0:02:54.1]}
8... b6 {[%clk 0:02:46.3]} 9. Nf3 {[%clk 0:02:52]} 9... Bb7 {[%clk 0:02:46.1]}
10. O-O {[%clk 0:02:51.4]} 10... Nbd7 {[%clk 0:02:44.6]} 11. Qc2 {[%clk
0:02:49.5]} 11... O-O {[%clk 0:02:42]} 12. Rfd1 {[%clk 0:02:49.5]} 12... Rfe8
{[%clk 0:02:38.3]} 13. Rac1 {[%clk 0:02:46.8]} 13... h6 {[%clk 0:02:31.5]} 14.
h3 {[%clk 0:02:45.6]} 14... Rac8 {[%clk 0:02:28.5]} 15. Qb1 {[%clk 0:02:44.9]}
15... Ne4 {[%clk 0:02:21.8]} 16. Nd2 {[%clk 0:02:30.6]} 16... Ndf6 {[%clk
0:02:15.5]} 17. Ndxe4 {[%clk 0:02:28.7]} 17... dxe4 {[%clk 0:02:13.2]} 18. Bc4
{[%clk 0:02:27.9]} 18... g5 {[%clk 0:01:45.7]} 19. Ne2 {[%clk 0:02:19.8]} 19...
Rcd8 {[%clk 0:01:22.8]} 20. Ng3 {[%clk 0:02:19]} 20... Bc8 {[%clk 0:01:22]} 21.
Be2 {[%clk 0:02:18.4]} 21... g4 {[%clk 0:01:14.5]} 22. hxg4 {[%clk 0:02:07.8]}
22... Bxg4 {[%clk 0:01:12.4]} 23. Qc2 {[%clk 0:02:07.4]} 23... h5 {[%clk
0:01:10.4]} 24. Qxc7 {[%clk 0:02:05.1]} 24... h4 {[%clk 0:00:57]} 25. Qxd6
{[%clk 0:01:59.6]} 25... Rxd6 {[%clk 0:00:57.9]} 26. Bxg4 {[%clk 0:01:59.6]}
26... hxg3 {[%clk 0:00:53.7]} 27. Bh3 {[%clk 0:01:59.6]} 27... gxf2+ {[%clk
0:00:52.6]} 28. Kxf2 {[%clk 0:01:59.4]} 28... Kg7 {[%clk 0:00:48.9]} 29. Rc7
{[%clk 0:01:57.7]} 29... Rh8 {[%clk 0:00:41.3]} 30. Rdc1 {[%clk 0:01:55.9]}
30... Rh5 {[%clk 0:00:35.4]} 31. Ra7 {[%clk 0:01:50]} 31... Nd5 {[%clk
0:00:22.6]} 32. Rxa6 {[%clk 0:01:40.9]} 32... Nb4 {[%clk 0:00:22.2]} 33. Ra3
{[%clk 0:01:27.3]} 33... Nd3+ {[%clk 0:00:21.6]} 34. Rxd3 {[%clk 0:01:27.3]}
34... exd3 {[%clk 0:00:22.5]} 35. Rd1 {[%clk 0:01:26.2]} 35... Rf6+ {[%clk
0:00:19.7]} 36. Kg1 {[%clk 0:01:21.9]} 36... Rg5 {[%clk 0:00:17.3]} 37. Rxd3
{[%clk 0:01:20.1]} 37... Rg3 {[%clk 0:00:17.9]} 38. Kh2 {[%clk 0:01:18.5]} 38...
Rfg6 {[%clk 0:00:17.5]} 39. d5 {[%clk 0:01:15.3]} 39... R3g5 {[%clk 0:00:16.9]}
40. d6 {[%clk 0:01:13.8]} 40... Rb5 {[%clk 0:00:05.8]} 41. d7 {[%clk 0:01:12]}
1-0